[Event "Late-Titled-Tuesday-Blitz-May-14-2024"]
[Site "Chess.com"]
[Date "2024.05.14"]
[Round "5"]
[White "Art10ECHR"]
[Black "Nouali_Mohamed"]
[Result "1-0"]
[WhiteElo "2493"]
[BlackElo "2608"]
[TimeControl "180+1"]
[EndTime "14:55:47 PDT"]
[Termination "Art10ECHR won on time"]

1. d4 {[%clk 0:02:33.2]} 1... Nf6 {[%clk 0:02:59.6]} 2. c4 {[%clk 0:02:31.9]}
2... g6 {[%clk 0:03:00.4]} 3. Nc3 {[%clk 0:02:31.5]} 3... Bg7 {[%clk 0:03:00.8]}
4. e4 {[%clk 0:02:31.8]} 4... d6 {[%clk 0:03:01.4]} 5. Be2 {[%clk 0:02:32.1]}
5... O-O {[%clk 0:03:01.3]} 6. h4 {[%clk 0:02:32.7]} 6... h5 {[%clk 0:03:00.7]}
7. Nf3 {[%clk 0:02:32.3]} 7... Bg4 {[%clk 0:03:00.1]} 8. Be3 {[%clk 0:02:23.8]}
8... c5 {[%clk 0:02:49.4]} 9. d5 {[%clk 0:02:18.6]} 9... a6 {[%clk 0:02:45.8]}
10. a4 {[%clk 0:02:17.4]} 10... e6 {[%clk 0:02:45.1]} 11. dxe6 {[%clk
0:02:10.4]} 11... Bxe6 {[%clk 0:02:44.7]} 12. Ng5 {[%clk 0:02:07.6]} 12... Bc8
{[%clk 0:02:29.3]} 13. O-O {[%clk 0:01:46.2]} 13... Nc6 {[%clk 0:02:29.4]} 14.
Qd2 {[%clk 0:01:44.6]} 14... Ng4 {[%clk 0:02:19.4]} 15. Bxg4 {[%clk 0:01:43.4]}
15... Bxg4 {[%clk 0:02:20.3]} 16. f3 {[%clk 0:01:43.2]} 16... Bc8 {[%clk
0:02:02.1]} 17. Rad1 {[%clk 0:01:37]} 17... f6 {[%clk 0:01:47.2]} 18. Qd5+
{[%clk 0:01:30.8]} 18... Kh8 {[%clk 0:01:43.4]} 19. Nf7+ {[%clk 0:01:30.8]}
19... Rxf7 {[%clk 0:01:43.9]} 20. Qxf7 {[%clk 0:01:31.4]} 20... Ne5 {[%clk
0:01:30.2]} 21. Qd5 {[%clk 0:01:31.1]} 21... Qb6 {[%clk 0:01:24.1]} 22. Qxd6
{[%clk 0:01:19.1]} 22... Qxb2 {[%clk 0:01:23]} 23. Nd5 {[%clk 0:01:17.9]} 23...
Nxc4 {[%clk 0:01:07.1]} 24. Qd8+ {[%clk 0:01:00.7]} 24... Kh7 {[%clk 0:01:07.2]}
25. Nxf6+ {[%clk 0:00:58]} 25... Bxf6 {[%clk 0:01:04.9]} 26. Qc7+ {[%clk
0:00:52.7]} 26... Bg7 {[%clk 0:01:00.9]} 27. Bxc5 {[%clk 0:00:40.1]} 27... Be6
{[%clk 0:00:51.7]} 28. Bd4 {[%clk 0:00:37.3]} 28... Qxd4+ {[%clk 0:00:19]} 29.
Rxd4 {[%clk 0:00:36.6]} 29... Rc8 {[%clk 0:00:19.9]} 30. Qe7 {[%clk 0:00:30.5]}
30... Ne3 {[%clk 0:00:20.2]} 31. Qxe6 {[%clk 0:00:24.9]} 31... Rc2 {[%clk
0:00:20.4]} 32. Rd7 {[%clk 0:00:23]} 32... Rxg2+ {[%clk 0:00:17.5]} 33. Kh1
{[%clk 0:00:23.2]} 33... Re2 {[%clk 0:00:05.5]} 34. Qf6 {[%clk 0:00:18.5]} 34...
Nf5 {[%clk 0:00:02.9]} 35. exf5 {[%clk 0:00:18.3]} 35... Re7 {[%clk 0:00:02.3]}
36. Rxe7 {[%clk 0:00:18.2]} 1-0

[Event "Late-Titled-Tuesday-Blitz-May-14-2024"]
[Site "Chess.com"]
[Date "2024.05.14"]
[Round "5"]
[White "A4RookA3"]
[Black "LUISMIGUELOV"]
[Result "1-0"]
[WhiteElo "2420"]
[BlackElo "2228"]
[TimeControl "180+1"]
[EndTime "14:55:53 PDT"]
[Termination "A4RookA3 won by resignation"]

1. e4 {[%clk 0:02:52.8]} 1... c6 {[%clk 0:02:59]} 2. d4 {[%clk 0:02:52.1]} 2...
d5 {[%clk 0:02:58.6]} 3. e5 {[%clk 0:02:52.6]} 3... c5 {[%clk 0:02:57.2]} 4. Nf3
{[%clk 0:02:50.3]} 4... cxd4 {[%clk 0:02:55.4]} 5. Qxd4 {[%clk 0:02:51.2]} 5...
Nc6 {[%clk 0:02:54.1]} 6. Qf4 {[%clk 0:02:50.3]} 6... e6 {[%clk 0:02:50.1]} 7.
Bd3 {[%clk 0:02:43.1]} 7... Qc7 {[%clk 0:02:43.6]} 8. O-O {[%clk 0:02:31.5]}
8... Nge7 {[%clk 0:02:42.3]} 9. Re1 {[%clk 0:02:27.3]} 9... Ng6 {[%clk
0:02:41.5]} 10. Qg3 {[%clk 0:02:26.9]} 10... Be7 {[%clk 0:02:38.4]} 11. h4
{[%clk 0:02:24.2]} 11... O-O {[%clk 0:01:45.7]} 12. h5 {[%clk 0:02:16.2]} 12...
Nh8 {[%clk 0:01:45.6]} 13. Bh6 {[%clk 0:02:09.6]} 13... g6 {[%clk 0:01:38.9]}
14. hxg6 {[%clk 0:02:08.4]} 14... Nxg6 {[%clk 0:01:35.4]} 15. Bxg6 {[%clk
0:01:35]} 15... fxg6 {[%clk 0:01:32.3]} 16. Bxf8 {[%clk 0:01:33.9]} 16... Bxf8
{[%clk 0:01:31.2]} 17. Nbd2 {[%clk 0:01:31.2]} 17... Bg7 {[%clk 0:01:30.2]} 18.
c4 {[%clk 0:01:26.6]} 18... dxc4 {[%clk 0:01:20.2]} 19. Nxc4 {[%clk 0:01:22.9]}
19... Bd7 {[%clk 0:01:14.8]} 20. Rad1 {[%clk 0:01:18.5]} 20... Rf8 {[%clk
0:01:09.8]} 21. Nd6 {[%clk 0:01:06.2]} 21... Ne7 {[%clk 0:01:07]} 22. Rc1 {[%clk
0:01:02.6]} 22... Bc6 {[%clk 0:01:06.5]} 23. Nd4 {[%clk 0:00:59.7]} 23... Nf5
{[%clk 0:01:04]} 24. N6xf5 {[%clk 0:00:59.2]} 24... exf5 {[%clk 0:01:00]} 25.
Ne6 {[%clk 0:00:59.6]} 25... Qb6 {[%clk 0:00:44.3]} 26. Nxf8 {[%clk 0:00:53.5]}
26... Bxf8 {[%clk 0:00:43.9]} 27. e6 {[%clk 0:00:53.6]} 27... Be7 {[%clk
0:00:42.9]} 28. Qb8+ {[%clk 0:00:47.4]} 28... Kg7 {[%clk 0:00:41.8]} 29. Qe5+
{[%clk 0:00:47.2]} 29... Bf6 {[%clk 0:00:37.9]} 30. Qd6 {[%clk 0:00:25.1]} 30...
Qxb2 {[%clk 0:00:37.3]} 31. Rxc6 {[%clk 0:00:14.4]} 31... bxc6 {[%clk
0:00:35.5]} 32. e7 {[%clk 0:00:14.6]} 32... Bxe7 {[%clk 0:00:34.1]} 33. Qxe7+
{[%clk 0:00:13.5]} 33... Kg8 {[%clk 0:00:26.7]} 34. Qd8+ {[%clk 0:00:13]} 34...
Kg7 {[%clk 0:00:26.6]} 35. Re7+ {[%clk 0:00:09.7]} 35... Kh6 {[%clk 0:00:26]}
36. Qf8+ {[%clk 0:00:10]} 36... Kh5 {[%clk 0:00:25.2]} 37. Rxh7+ {[%clk
0:00:10]} 37... Kg4 {[%clk 0:00:22.9]} 38. f3+ {[%clk 0:00:09.1]} 38... Kf4
{[%clk 0:00:20.5]} 39. Qd6+ {[%clk 0:00:09.3]} 39... Ke3 {[%clk 0:00:20.3]} 40.
Re7+ {[%clk 0:00:08.6]} 1-0

[Event "Late-Titled-Tuesday-Blitz-May-14-2024"]
[Site "Chess.com"]
[Date "2024.05.14"]
[Round "5"]
[White "Dolphin_2010"]
[Black "cristianserban1"]
[Result "0-1"]
[WhiteElo "2616"]
[BlackElo "2503"]
[TimeControl "180+1"]
[EndTime "14:55:55 PDT"]
[Termination "cristianserban1 won on time"]

1. d4 {[%clk 0:02:57.1]} 1... Nf6 {[%clk 0:02:58.6]} 2. Bg5 {[%clk 0:02:56.4]}
2... d5 {[%clk 0:02:57.8]} 3. Bxf6 {[%clk 0:02:56.4]} 3... gxf6 {[%clk
0:02:58.7]} 4. c4 {[%clk 0:02:56.4]} 4... dxc4 {[%clk 0:02:58.9]} 5. e3 {[%clk
0:02:55.1]} 5... c5 {[%clk 0:02:59.1]} 6. Bxc4 {[%clk 0:02:55.3]} 6... cxd4
{[%clk 0:02:56.2]} 7. Nf3 {[%clk 0:02:55.9]} 7... Nc6 {[%clk 0:02:48.2]} 8. exd4
{[%clk 0:02:53.3]} 8... Bg4 {[%clk 0:02:46.6]} 9. d5 {[%clk 0:02:44.7]} 9...
Qa5+ {[%clk 0:02:25.4]} 10. Nc3 {[%clk 0:02:38.2]} 10... Rd8 {[%clk 0:02:25.1]}
11. Qe2 {[%clk 0:01:56.3]} 11... Nd4 {[%clk 0:02:00.8]} 12. Qe4 {[%clk
0:01:41.1]} 12... Nxf3+ {[%clk 0:01:59.6]} 13. gxf3 {[%clk 0:01:40.8]} 13... Bd7
{[%clk 0:02:00.2]} 14. O-O {[%clk 0:01:18.7]} 14... b5 {[%clk 0:01:18.7]} 15. d6
{[%clk 0:00:48.7]} 15... bxc4 {[%clk 0:01:11.1]} 16. Nd5 {[%clk 0:00:49.2]}
16... Be6 {[%clk 0:00:45.2]} 17. Nc7+ {[%clk 0:00:46.3]} 17... Kd7 {[%clk
0:00:45.6]} 18. Nxe6 {[%clk 0:00:44.8]} 18... fxe6 {[%clk 0:00:45.6]} 19. Qb7+
{[%clk 0:00:43.2]} 19... Ke8 {[%clk 0:00:45.3]} 20. Qc6+ {[%clk 0:00:17.3]}
20... Kf7 {[%clk 0:00:44.4]} 21. dxe7 {[%clk 0:00:17.5]} 21... Bxe7 {[%clk
0:00:45.3]} 22. Qxc4 {[%clk 0:00:15.8]} 22... Qd5 {[%clk 0:00:35]} 23. Qc3
{[%clk 0:00:16]} 23... Rc8 {[%clk 0:00:23.2]} 24. Qe3 {[%clk 0:00:15.9]} 24...
Bc5 {[%clk 0:00:23.2]} 25. Qe2 {[%clk 0:00:14.5]} 25... Rhg8+ {[%clk 0:00:12.6]}
26. Kh1 {[%clk 0:00:15]} 26... Rg5 {[%clk 0:00:12.6]} 27. Rad1 {[%clk
0:00:13.1]} 27... Qb7 {[%clk 0:00:08.3]} 28. Rg1 {[%clk 0:00:08.4]} 28... Rcg8
{[%clk 0:00:07.6]} 29. Rxg5 {[%clk 0:00:08]} 29... Rxg5 {[%clk 0:00:08.5]} 30.
Qd3 {[%clk 0:00:08.6]} 30... Kg7 {[%clk 0:00:04.5]} 31. Qe2 {[%clk 0:00:03.6]}
31... Rf5 {[%clk 0:00:02.4]} 0-1

[Event "Late-Titled-Tuesday-Blitz-May-14-2024"]
[Site "Chess.com"]
[Date "2024.05.14"]
[Round "5"]
[White "SahaNeelash"]
[Black "EsmeraldasAnderson03"]
[Result "0-1"]
[WhiteElo "2703"]
[BlackElo "2532"]
[TimeControl "180+1"]
[EndTime "14:55:57 PDT"]
[Termination "EsmeraldasAnderson03 won by resignation"]

1. d4 {[%clk 0:03:00.9]} 1... d5 {[%clk 0:02:58.4]} 2. Bf4 {[%clk 0:03:00.5]}
2... e6 {[%clk 0:02:58.2]} 3. e3 {[%clk 0:03:00.4]} 3... Bd6 {[%clk 0:02:58.9]}
4. Bg3 {[%clk 0:03:00.5]} 4... Nf6 {[%clk 0:02:59.5]} 5. Nd2 {[%clk 0:03:00.5]}
5... O-O {[%clk 0:03:00.1]} 6. Bd3 {[%clk 0:03:00.6]} 6... c5 {[%clk 0:03:00.7]}
7. c3 {[%clk 0:03:00.8]} 7... Qc7 {[%clk 0:03:00]} 8. Ngf3 {[%clk 0:02:57.4]}
8... Nbd7 {[%clk 0:02:59.8]} 9. Qe2 {[%clk 0:02:55.3]} 9... e5 {[%clk
0:02:56.1]} 10. dxe5 {[%clk 0:02:56.2]} 10... Nxe5 {[%clk 0:02:56.7]} 11. Nxe5
{[%clk 0:02:55.5]} 11... Bxe5 {[%clk 0:02:57.6]} 12. Nf3 {[%clk 0:02:53.5]}
12... Bxg3 {[%clk 0:02:53.8]} 13. hxg3 {[%clk 0:02:54.4]} 13... h6 {[%clk
0:02:54.2]} 14. O-O-O {[%clk 0:02:39.4]} 14... c4 {[%clk 0:02:44]} 15. Bc2
{[%clk 0:02:39.1]} 15... b5 {[%clk 0:02:44.6]} 16. Nd4 {[%clk 0:02:32.8]} 16...
Rb8 {[%clk 0:02:43.9]} 17. f3 {[%clk 0:02:22.8]} 17... b4 {[%clk 0:02:36.7]} 18.
cxb4 {[%clk 0:02:21.7]} 18... Rxb4 {[%clk 0:02:36.2]} 19. g4 {[%clk 0:02:22.3]}
19... Re8 {[%clk 0:02:21.8]} 20. Qd2 {[%clk 0:02:11.9]} 20... a5 {[%clk
0:02:15.1]} 21. Qc3 {[%clk 0:02:09]} 21... Bd7 {[%clk 0:02:05.1]} 22. Bf5 {[%clk
0:01:56.6]} 22... Reb8 {[%clk 0:01:51.7]} 23. Rd2 {[%clk 0:01:46.5]} 23... a4
{[%clk 0:01:33.2]} 24. Bxd7 {[%clk 0:01:05.9]} 24... Nxd7 {[%clk 0:01:32.4]} 25.
Nf5 {[%clk 0:01:03.9]} 25... Ne5 {[%clk 0:00:57.1]} 26. f4 {[%clk 0:00:48.4]}
26... Rxb2 {[%clk 0:00:56.9]} 27. Rxb2 {[%clk 0:00:25.3]} 27... Nd3+ {[%clk
0:00:54.8]} 28. Kd1 {[%clk 0:00:25.5]} 28... Nxb2+ {[%clk 0:00:54.2]} 29. Ke2
{[%clk 0:00:26.1]} 29... f6 {[%clk 0:00:49.1]} 30. Rb1 {[%clk 0:00:24.6]} 30...
a3 {[%clk 0:00:48.7]} 31. Qxa3 {[%clk 0:00:18.1]} 31... c3 {[%clk 0:00:48.7]}
32. Ne7+ {[%clk 0:00:18.1]} 32... Kh8 {[%clk 0:00:48.9]} 33. Rc1 {[%clk
0:00:14]} 33... Qc4+ {[%clk 0:00:45.7]} 34. Kf3 {[%clk 0:00:14.2]} 34... Qe4+
{[%clk 0:00:43.6]} 35. Kg3 {[%clk 0:00:04.6]} 35... Qxe3+ {[%clk 0:00:43.4]} 36.
Kh4 {[%clk 0:00:05.3]} 36... Qxc1 {[%clk 0:00:41.7]} 37. Qd6 {[%clk 0:00:03.8]}
37... Re8 {[%clk 0:00:36]} 38. Ng6+ {[%clk 0:00:02.1]} 38... Kh7 {[%clk
0:00:36.5]} 39. Nf8+ {[%clk 0:00:01.8]} 39... Rxf8 {[%clk 0:00:36.6]} 40. Qxf8
{[%clk 0:00:01.6]} 40... Qxf4 {[%clk 0:00:34.5]} 41. Qc5 {[%clk 0:00:01.3]}
41... Nd1 {[%clk 0:00:27.7]} 42. Qxd5 {[%clk 0:00:01.3]} 42... Qg5+ {[%clk
0:00:28.4]} 43. Qxg5 {[%clk 0:00:01.2]} 43... hxg5+ {[%clk 0:00:29.3]} 44. Kg3
{[%clk 0:00:02.1]} 44... c2 {[%clk 0:00:30.2]} 0-1

[Event "Late-Titled-Tuesday-Blitz-May-14-2024"]
[Site "Chess.com"]
[Date "2024.05.14"]
[Round "5"]
[White "kinga2008"]
[Black "Abund"]
[Result "0-1"]
[WhiteElo "2532"]
[BlackElo "2772"]
[TimeControl "180+1"]
[EndTime "14:55:59 PDT"]
[Termination "Abund won by resignation"]

1. e4 {[%clk 0:02:51.9]} 1... c6 {[%clk 0:03:00.3]} 2. d4 {[%clk 0:02:48.4]}
2... d5 {[%clk 0:03:00.8]} 3. Nc3 {[%clk 0:02:48.4]} 3... dxe4 {[%clk
0:02:58.7]} 4. Nxe4 {[%clk 0:02:49.3]} 4... Nf6 {[%clk 0:02:59.2]} 5. Nxf6+
{[%clk 0:02:45.8]} 5... exf6 {[%clk 0:03:00.1]} 6. Nf3 {[%clk 0:02:46.5]} 6...
Bd6 {[%clk 0:03:00.1]} 7. Bd3 {[%clk 0:02:46.2]} 7... O-O {[%clk 0:03:00.6]} 8.
h3 {[%clk 0:02:46.9]} 8... Re8+ {[%clk 0:03:00.5]} 9. Be3 {[%clk 0:02:47.2]}
9... Bf4 {[%clk 0:02:52.9]} 10. Qd2 {[%clk 0:02:46.9]} 10... Qe7 {[%clk
0:02:45.7]} 11. O-O-O {[%clk 0:02:36.9]} 11... Bxe3 {[%clk 0:02:40.6]} 12. fxe3
{[%clk 0:02:37]} 12... Qxe3 {[%clk 0:02:40]} 13. Qxe3 {[%clk 0:02:37.3]} 13...
Rxe3 {[%clk 0:02:40.7]} 14. Rhe1 {[%clk 0:02:38.1]} 14... Rxe1 {[%clk
0:02:23.2]} 15. Rxe1 {[%clk 0:02:39]} 15... Kf8 {[%clk 0:02:23.6]} 16. Nd2
{[%clk 0:02:28.3]} 16... Be6 {[%clk 0:02:09.4]} 17. Bc4 {[%clk 0:02:23.5]} 17...
Bxc4 {[%clk 0:02:00.4]} 18. Nxc4 {[%clk 0:02:24.4]} 18... Nd7 {[%clk 0:02:01.1]}
19. Nd6 {[%clk 0:02:17.4]} 19... b6 {[%clk 0:01:59.6]} 20. Re3 {[%clk
0:02:08.9]} 20... Rd8 {[%clk 0:01:50.1]} 21. Nf5 {[%clk 0:02:02.9]} 21... g6
{[%clk 0:01:39.7]} 22. Ng3 {[%clk 0:02:02]} 22... f5 {[%clk 0:01:34.7]} 23. Rc3
{[%clk 0:01:57.1]} 23... c5 {[%clk 0:01:31.1]} 24. Rd3 {[%clk 0:01:57.4]} 24...
Ke7 {[%clk 0:01:26.9]} 25. Ne2 {[%clk 0:01:53.9]} 25... Nf6 {[%clk 0:01:21.7]}
26. Re3+ {[%clk 0:01:43.9]} 26... Kd6 {[%clk 0:01:16.2]} 27. dxc5+ {[%clk
0:01:42.2]} 27... Kxc5 {[%clk 0:01:14.1]} 28. Rc3+ {[%clk 0:01:27.7]} 28... Kd6
{[%clk 0:01:14]} 29. Nd4 {[%clk 0:01:21.1]} 29... Rd7 {[%clk 0:01:09.4]} 30. Rd3
{[%clk 0:01:11.8]} 30... Ke5 {[%clk 0:00:54.1]} 31. Nc6+ {[%clk 0:00:38.4]}
31... Kf4 {[%clk 0:00:53.5]} 32. Rf3+ {[%clk 0:00:24.2]} 32... Ke4 {[%clk
0:00:53.6]} 33. Nb4 {[%clk 0:00:18.4]} 33... f4 {[%clk 0:00:48]} 34. Nd3 {[%clk
0:00:15.3]} 34... g5 {[%clk 0:00:48.4]} 35. Rf2 {[%clk 0:00:14.6]} 35... Nd5
{[%clk 0:00:46.7]} 36. Re2+ {[%clk 0:00:14.5]} 36... Ne3 {[%clk 0:00:47.2]} 37.
Nf2+ {[%clk 0:00:14.9]} 37... Kf5 {[%clk 0:00:46.7]} 38. c3 {[%clk 0:00:15.5]}
38... h5 {[%clk 0:00:46]} 39. g3 {[%clk 0:00:07.7]} 39... fxg3 {[%clk
0:00:32.6]} 40. Rxe3 {[%clk 0:00:08]} 40... gxf2 {[%clk 0:00:33]} 41. Rf3+
{[%clk 0:00:08.3]} 41... Ke4 {[%clk 0:00:32.8]} 42. Rxf2 {[%clk 0:00:09.2]}
42... g4 {[%clk 0:00:27.4]} 43. hxg4 {[%clk 0:00:08.1]} 43... hxg4 {[%clk
0:00:28.3]} 44. a4 {[%clk 0:00:08.1]} 44... g3 {[%clk 0:00:28.2]} 45. Rf1 {[%clk
0:00:07.7]} 45... g2 {[%clk 0:00:28]} 46. Rg1 {[%clk 0:00:08.2]} 46... Kf3
{[%clk 0:00:28.6]} 0-1

[Event "Late-Titled-Tuesday-Blitz-May-14-2024"]
[Site "Chess.com"]
[Date "2024.05.14"]
[Round "5"]
[White "MaxLeto"]
[Black "Sinquefield"]
[Result "0-1"]
[WhiteElo "2388"]
[BlackElo "2579"]
[TimeControl "180+1"]
[EndTime "14:55:59 PDT"]
[Termination "Sinquefield won by checkmate"]

1. g4 {[%clk 0:03:00.9]} 1... d5 {[%clk 0:02:57.5]} 2. Bg2 {[%clk 0:03:00.9]}
2... e5 {[%clk 0:02:57.7]} 3. d4 {[%clk 0:03:00.7]} 3... e4 {[%clk 0:02:56.1]}
4. c4 {[%clk 0:02:59.9]} 4... c6 {[%clk 0:02:55.3]} 5. Nc3 {[%clk 0:02:59.6]}
5... h6 {[%clk 0:02:38.7]} 6. Qb3 {[%clk 0:02:55]} 6... Nf6 {[%clk 0:02:38]} 7.
g5 {[%clk 0:02:52.5]} 7... hxg5 {[%clk 0:02:37.9]} 8. Bxg5 {[%clk 0:02:53.4]}
8... dxc4 {[%clk 0:02:25]} 9. Qxc4 {[%clk 0:02:49.7]} 9... Be6 {[%clk
0:02:23.7]} 10. Qa4 {[%clk 0:02:46.3]} 10... Qb6 {[%clk 0:02:07.6]} 11. O-O-O
{[%clk 0:02:42.2]} 11... Nbd7 {[%clk 0:02:05.1]} 12. Nxe4 {[%clk 0:02:28.6]}
12... Nxe4 {[%clk 0:01:52.8]} 13. Bxe4 {[%clk 0:02:29.5]} 13... Nf6 {[%clk
0:01:52.5]} 14. Bxf6 {[%clk 0:02:23]} 14... gxf6 {[%clk 0:01:53.4]} 15. d5
{[%clk 0:02:13.3]} 15... Bd7 {[%clk 0:01:49.3]} 16. dxc6 {[%clk 0:02:10.3]}
16... bxc6 {[%clk 0:01:47.3]} 17. Nf3 {[%clk 0:01:19.2]} 17... Rb8 {[%clk
0:01:45.3]} 18. Rd2 {[%clk 0:01:09.1]} 18... f5 {[%clk 0:01:36.8]} 19. Ne5
{[%clk 0:00:44.5]} 19... Qc5+ {[%clk 0:01:25.6]} 20. Kb1 {[%clk 0:00:22.3]}
20... Qxe5 {[%clk 0:01:21.9]} 21. Bxc6 {[%clk 0:00:21.5]} 21... Bd6 {[%clk
0:00:26]} 22. Bxd7+ {[%clk 0:00:20]} 22... Ke7 {[%clk 0:00:26.3]} 23. Rhd1
{[%clk 0:00:19.2]} 23... Rb6 {[%clk 0:00:20.7]} 24. Bc6 {[%clk 0:00:02.9]} 24...
Rhb8 {[%clk 0:00:19.9]} 25. b3 {[%clk 0:00:03.6]} 25... Bc5 {[%clk 0:00:10.9]}
26. Bd5 {[%clk 0:00:03.1]} 26... a6 {[%clk 0:00:08.1]} 27. e3 {[%clk 0:00:03]}
27... Kf8 {[%clk 0:00:06.4]} 28. h4 {[%clk 0:00:03.3]} 28... Be7 {[%clk
0:00:06.8]} 29. h5 {[%clk 0:00:03.5]} 29... Bf6 {[%clk 0:00:07.4]} 30. Rd4
{[%clk 0:00:02.8]} 30... Rc8 {[%clk 0:00:06.1]} 31. Bc4 {[%clk 0:00:02.6]} 31...
Rbc6 {[%clk 0:00:05.7]} 32. h6 {[%clk 0:00:01.1]} 32... Kg8 {[%clk 0:00:05]} 33.
Rg1+ {[%clk 0:00:00.2]} 33... Kh7 {[%clk 0:00:05.6]} 34. Rh1 {[%clk 0:00:00.6]}
34... f4 {[%clk 0:00:04.8]} 35. exf4 {[%clk 0:00:00.5]} 35... Qxd4 {[%clk
0:00:05]} 36. Bd3+ {[%clk 0:00:01.2]} 36... Qxd3# {[%clk 0:00:05.5]} 0-1

[Event "Late-Titled-Tuesday-Blitz-May-14-2024"]
[Site "Chess.com"]
[Date "2024.05.14"]
[Round "5"]
[White "el_sporco"]
[Black "Byniolus"]
[Result "0-1"]
[WhiteElo "2359"]
[BlackElo "2750"]
[TimeControl "180+1"]
[EndTime "14:55:59 PDT"]
[Termination "Byniolus won by resignation"]

1. e4 {[%clk 0:02:57.9]} 1... d6 {[%clk 0:03:00.9]} 2. d4 {[%clk 0:02:49.1]}
2... a6 {[%clk 0:03:01.8]} 3. Nc3 {[%clk 0:02:49.9]} 3... g6 {[%clk 0:03:02.7]}
4. Nf3 {[%clk 0:02:50.4]} 4... e6 {[%clk 0:03:02.9]} 5. Be3 {[%clk 0:02:50.9]}
5... c6 {[%clk 0:03:03.5]} 6. Bd3 {[%clk 0:02:51.3]} 6... b6 {[%clk 0:03:04.2]}
7. O-O {[%clk 0:02:51.4]} 7... f6 {[%clk 0:03:04.9]} 8. Re1 {[%clk 0:02:46.3]}
8... Ne7 {[%clk 0:03:04.5]} 9. Qd2 {[%clk 0:02:44.2]} 9... h6 {[%clk 0:03:02.2]}
10. Rad1 {[%clk 0:02:39]} 10... Bg7 {[%clk 0:03:00.1]} 11. Ne2 {[%clk
0:02:33.4]} 11... Qc7 {[%clk 0:02:51.5]} 12. Nf4 {[%clk 0:02:29.2]} 12... e5
{[%clk 0:02:47]} 13. Ne2 {[%clk 0:02:25.8]} 13... Nd7 {[%clk 0:02:44.2]} 14. c3
{[%clk 0:02:25.5]} 14... Bb7 {[%clk 0:02:37.8]} 15. a4 {[%clk 0:02:24.2]} 15...
O-O-O {[%clk 0:02:36.3]} 16. Qc2 {[%clk 0:02:10.3]} 16... Kb8 {[%clk 0:02:33]}
17. b4 {[%clk 0:02:09.4]} 17... d5 {[%clk 0:02:16.8]} 18. b5 {[%clk 0:01:57.5]}
18... f5 {[%clk 0:02:03.6]} 19. bxa6 {[%clk 0:01:43.3]} 19... Ba8 {[%clk
0:02:02.8]} 20. a5 {[%clk 0:01:21.6]} 20... fxe4 {[%clk 0:01:42.2]} 21. axb6
{[%clk 0:01:21.4]} 21... Nxb6 {[%clk 0:01:43.1]} 22. Rb1 {[%clk 0:01:15.3]}
22... Nc8 {[%clk 0:01:26.1]} 23. Bxe4 {[%clk 0:01:05.2]} 23... dxe4 {[%clk
0:01:25.8]} 24. Qxe4 {[%clk 0:01:06.1]} 24... c5 {[%clk 0:01:13.2]} 25. Qxg6
{[%clk 0:01:06.2]} 25... Bxf3 {[%clk 0:01:12.5]} 26. dxc5 {[%clk 0:01:01]} 26...
Bxe2 {[%clk 0:01:01.8]} 27. cxb6 {[%clk 0:00:56.3]} 27... Qd6 {[%clk 0:00:53.1]}
28. Qxg7 {[%clk 0:00:43.8]} 28... Bxa6 {[%clk 0:00:51.7]} 29. c4 {[%clk
0:00:20.6]} 29... Rhg8 {[%clk 0:00:48.9]} 30. Qh7 {[%clk 0:00:13.4]} 30... Bb7
{[%clk 0:00:47.3]} 31. f3 {[%clk 0:00:12.5]} 31... Bxf3 {[%clk 0:00:36.1]} 32.
Rb2 {[%clk 0:00:12.4]} 32... Bb7 {[%clk 0:00:21.3]} 33. c5 {[%clk 0:00:12.3]}
33... Qc6 {[%clk 0:00:21.6]} 34. Qc2 {[%clk 0:00:10.6]} 34... Ne7 {[%clk
0:00:12]} 35. Ra1 {[%clk 0:00:04.4]} 35... Nf5 {[%clk 0:00:10.5]} 36. Bc1 {[%clk
0:00:02.8]} 36... Nd4 {[%clk 0:00:09]} 37. Qf2 {[%clk 0:00:02.9]} 37... Rdf8
{[%clk 0:00:07.6]} 38. Qe1 {[%clk 0:00:03.1]} 38... Rxg2+ {[%clk 0:00:05.5]} 0-1

[Event "Late-Titled-Tuesday-Blitz-May-14-2024"]
[Site "Chess.com"]
[Date "2024.05.14"]
[Round "5"]
[White "1g60-1"]
[Black "SoCalJuniorChess"]
[Result "1-0"]
[WhiteElo "2417"]
[BlackElo "2224"]
[TimeControl "180+1"]
[EndTime "14:56:00 PDT"]
[Termination "1g60-1 won by checkmate"]

1. Nf3 {[%clk 0:02:53.5]} 1... Nf6 {[%clk 0:02:58.9]} 2. e3 {[%clk 0:02:53.6]}
2... c5 {[%clk 0:02:58.7]} 3. c4 {[%clk 0:02:53.9]} 3... Nc6 {[%clk 0:02:56.3]}
4. Nc3 {[%clk 0:02:54.6]} 4... e5 {[%clk 0:02:49.7]} 5. d3 {[%clk 0:02:52.5]}
5... d6 {[%clk 0:02:49.7]} 6. Be2 {[%clk 0:02:51.6]} 6... g6 {[%clk 0:02:47.9]}
7. O-O {[%clk 0:02:51.8]} 7... Bg7 {[%clk 0:02:48.1]} 8. e4 {[%clk 0:02:51.5]}
8... O-O {[%clk 0:02:45.3]} 9. Nd5 {[%clk 0:02:50]} 9... Nxd5 {[%clk 0:02:41.8]}
10. cxd5 {[%clk 0:02:49.1]} 10... Nd4 {[%clk 0:02:42.3]} 11. Nxd4 {[%clk
0:02:48.2]} 11... cxd4 {[%clk 0:02:38.1]} 12. Bd2 {[%clk 0:02:47.6]} 12... Qb6
{[%clk 0:02:31.6]} 13. Qb3 {[%clk 0:02:43.8]} 13... f5 {[%clk 0:02:29.8]} 14. f3
{[%clk 0:02:33.7]} 14... Bd7 {[%clk 0:02:21.7]} 15. Qa3 {[%clk 0:02:27.9]} 15...
Rac8 {[%clk 0:02:14]} 16. Bb4 {[%clk 0:02:19.6]} 16... Rc2 {[%clk 0:02:04.8]}
17. Bd1 {[%clk 0:02:07.1]} 17... Rfc8 {[%clk 0:01:22]} 18. Bxc2 {[%clk
0:02:03.2]} 18... Rxc2 {[%clk 0:01:22.9]} 19. Rac1 {[%clk 0:01:53.3]} 19... Rxc1
{[%clk 0:01:08.6]} 20. Rxc1 {[%clk 0:01:53.2]} 20... Bh6 {[%clk 0:01:09.2]} 21.
Rc2 {[%clk 0:01:48.1]} 21... Bf8 {[%clk 0:00:52.1]} 22. Kf2 {[%clk 0:01:13.3]}
22... Bb5 {[%clk 0:00:50.1]} 23. Ke2 {[%clk 0:01:05.3]} 23... Qd8 {[%clk
0:00:42.2]} 24. Qa5 {[%clk 0:00:59.8]} 24... Qe8 {[%clk 0:00:18.7]} 25. Qc7
{[%clk 0:00:50.5]} 25... g5 {[%clk 0:00:14.1]} 26. exf5 {[%clk 0:00:28.7]} 26...
e4 {[%clk 0:00:13.8]} 27. fxe4 {[%clk 0:00:18.7]} 27... Qxe4+ {[%clk 0:00:12.6]}
28. Kd1 {[%clk 0:00:15.3]} 28... Qxd3+ {[%clk 0:00:04.9]} 29. Rd2 {[%clk
0:00:11.8]} 29... Qb1+ {[%clk 0:00:03.4]} 30. Qc1 {[%clk 0:00:11.9]} 30... Qe4
{[%clk 0:00:02.9]} 31. b3 {[%clk 0:00:05.8]} 31... Qg4+ {[%clk 0:00:03.2]} 32.
Kc2 {[%clk 0:00:06.2]} 32... Qxf5+ {[%clk 0:00:03.2]} 33. Kb2 {[%clk 0:00:06.4]}
33... Qxd5 {[%clk 0:00:03.8]} 34. Qc8 {[%clk 0:00:05.2]} 34... Qe5 {[%clk
0:00:02.7]} 35. Rf2 {[%clk 0:00:04.7]} 35... d3+ {[%clk 0:00:01.1]} 36. Bc3
{[%clk 0:00:05]} 36... Qd5 {[%clk 0:00:01.4]} 37. Qxf8# {[%clk 0:00:04.3]} 1-0